{"text_format":"3","workbook":"xlsx","n_sheets":4,"sheets":["Резюме","Активи","Задължения","Категории"],"not_rendered":{"defined_names":10},"read":"whole","date_system":"1900"}

{"sheet":"Резюме","index":0,"n_rows":12,"n_cols":4,"rows_kept":12}
[null,"Балансов отчет"]
[null,null,{"$f":"\"FY-\"&YEAR(TODAY())-1","v":"FY-2016"},{"$f":"\"FY-\"&YEAR(TODAY())","v":"FY-2017"}]
[null,"Тип актив","Предходна година","Текуща година"]
[null,"Текущи активи",{"$f":"SUMIFS(Активи[Предходна година],Активи[Тип актив],Табло[[#This Row],[Тип актив]])+SUMIFS(Задължения[Предходна година],Задължения[Тип задължение],Табло[[#This Row],[Тип актив]])","v":600},{"$f":"SUMIFS(Активи[Текуща година],Активи[Тип актив],Табло[[#This Row],[Тип актив]])+SUMIFS(Задължения[Текуща година],Задължения[Тип задължение],Табло[[#This Row],[Тип актив]])","v":600}]
[null,"Материални активи",{"$f":"SUMIFS(Активи[Предходна година],Активи[Тип актив],Табло[[#This Row],[Тип актив]])+SUMIFS(Задължения[Предходна година],Задължения[Тип задължение],Табло[[#This Row],[Тип актив]])","v":{"v":-100,"d":"-100 "}},{"$f":"SUMIFS(Активи[Текуща година],Активи[Тип актив],Табло[[#This Row],[Тип актив]])+SUMIFS(Задължения[Текуща година],Задължения[Тип задължение],Табло[[#This Row],[Тип актив]])","v":{"v":-85,"d":"-85 "}}]
[null,"Други активи",{"$f":"SUMIFS(Активи[Предходна година],Активи[Тип актив],Табло[[#This Row],[Тип актив]])+SUMIFS(Задължения[Предходна година],Задължения[Тип задължение],Табло[[#This Row],[Тип актив]])","v":0},{"$f":"SUMIFS(Активи[Текуща година],Активи[Тип актив],Табло[[#This Row],[Тип актив]])+SUMIFS(Задължения[Текуща година],Задължения[Тип задължение],Табло[[#This Row],[Тип актив]])","v":0}]
[null,"Текущи задължения",{"$f":"SUMIFS(Активи[Предходна година],Активи[Тип актив],Табло[[#This Row],[Тип актив]])+SUMIFS(Задължения[Предходна година],Задължения[Тип задължение],Табло[[#This Row],[Тип актив]])","v":500},{"$f":"SUMIFS(Активи[Текуща година],Активи[Тип актив],Табло[[#This Row],[Тип актив]])+SUMIFS(Задължения[Текуща година],Задължения[Тип задължение],Табло[[#This Row],[Тип актив]])","v":350}]
[null,"Дългосрочни задължения",{"$f":"SUMIFS(Активи[Предходна година],Активи[Тип актив],Табло[[#This Row],[Тип актив]])+SUMIFS(Задължения[Предходна година],Задължения[Тип задължение],Табло[[#This Row],[Тип актив]])","v":0},{"$f":"SUMIFS(Активи[Текуща година],Активи[Тип актив],Табло[[#This Row],[Тип актив]])+SUMIFS(Задължения[Текуща година],Задължения[Тип задължение],Табло[[#This Row],[Тип актив]])","v":0}]
[null,"Собствен капитал",{"$f":"SUMIFS(Активи[Предходна година],Активи[Тип актив],Табло[[#This Row],[Тип актив]])+SUMIFS(Задължения[Предходна година],Задължения[Тип задължение],Табло[[#This Row],[Тип актив]])","v":0},{"$f":"SUMIFS(Активи[Текуща година],Активи[Тип актив],Табло[[#This Row],[Тип актив]])+SUMIFS(Задължения[Текуща година],Задължения[Тип задължение],Табло[[#This Row],[Тип актив]])","v":350}]
[null,"Общо активи",{"$f":"Активи[[#Totals],[Предходна година]]","v":500},{"$f":"Активи[[#Totals],[Текуща година]]","v":515}]
[null,"Общо задължения и собствен капитал",{"$f":"Задължения[[#Totals],[Предходна година]]","v":500},{"$f":"Задължения[[#Totals],[Текуща година]]","v":700}]
[null,"Салдо",{"$f":"C10-C11","v":0},{"$f":"D10-D11","v":{"v":-185,"d":"-185 "}}]

{"sheet":"Активи","index":1,"n_rows":14,"n_cols":5,"rows_kept":14}
[null,"Активи"]
[{"$nulls":3},{"$f":"Ф_ГОДИНА","v":"FY-2016"},{"$f":"Ф_ГОДИНА_2","v":"FY-2017"}]
[null,"Тип актив","Описание","Предходна година","Текуща година"]
[null,"Текущи активи","Парични средства",600,600]
[null,"Текущи активи","Инвестиции"]
[null,"Текущи активи","Наличности"]
[null,"Текущи активи","Вземания"]
[null,"Текущи активи","Предплатени разходи"]
[null,"Материални активи","Имущество и оборудване"]
[null,"Материални активи","Подобренията в наетите"]
[null,"Материални активи","Собствен капитал и други инвестиции"]
[null,"Материални активи","Минус натрупаната амортизация (отрицателна стойност)",{"v":-100,"d":"-100 "},{"v":-85,"d":"-85 "}]
[null,"Други активи","Благотворителност"]
[null,"Общо активи",null,{"$f":"SUBTOTAL(109,Активи[Предходна година])","v":500},{"$f":"SUBTOTAL(109,Активи[Текуща година])","v":515}]

{"sheet":"Задължения","index":2,"n_rows":12,"n_cols":5,"rows_kept":12}
[null,"Задължения"]
[{"$nulls":3},{"$f":"Ф_ГОДИНА","v":"FY-2016"},{"$f":"Ф_ГОДИНА_2","v":"FY-2017"}]
[null,"Тип задължение","Описание","Предходна година","Текуща година"]
[null,"Текущи задължения","Вземания",null,350]
[null,"Текущи задължения","Натрупани заплати"]
[null,"Текущи задължения","Натрупани компенсации",500]
[null,"Текущи задължения","Дължими подоходни данъци"]
[null,"Текущи задължения","Неполучени приходи"]
[null,"Дългосрочни задължения","Дължими ипотеки"]
[null,"Собствен капитал","Капиталови инвестиции",null,350]
[null,"Собствен капитал","Натрупаните задържани печалби"]
[null,"Общо задължения и собствен капитал",null,{"$f":"SUBTOTAL(109,Задължения[Предходна година])","v":500},{"$f":"SUBTOTAL(109,Задължения[Текуща година])","v":700}]

{"sheet":"Категории","index":3,"n_rows":9,"n_cols":2,"rows_kept":9}
[null,"Категории"]
[]
[null,"Категории"]
[null,"Текущи активи"]
[null,"Материални активи"]
[null,"Други активи"]
[null,"Текущи задължения"]
[null,"Дългосрочни задължения"]
[null,"Собствен капитал"]